bitfinex/quotes_BTCUSD_20250817
["timestamp","ask_amount","ask_price","bid_price","bid_amount"]
[1755412276409,2.43464131,118240.0,118230.0,0.01517]
[1755412276904,2.30668131,118240.0,118230.0,0.01517]
[1755412277141,2.43584131,118240.0,118230.0,0.01517]
[1755412279541,1.91644971,118240.0,118230.0,0.01517]
[1755412279757,2.43584131,118240.0,118230.0,0.01517]
[1755412282106,2.4140124,118240.0,118230.0,0.01517]
[1755412282355,2.43584131,118240.0,118230.0,0.01517]
[1755412282606,2.41996574,118240.0,118230.0,0.01517]
[1755412282860,1.86563971,118240.0,118230.0,0.01517]
[1755412283090,2.38503131,118240.0,118230.0,0.01517]
[1755412284705,1.91295131,118240.0,118230.0,0.01517]
[1755412284961,2.43234291,118240.0,118230.0,0.01517]
[1755412285226,2.41646734,118240.0,118230.0,0.01517]
[1755412285430,2.4323429,118240.0,118230.0,0.01517]
[1755412286816,2.4323429,118240.0,118230.0,0.01306]
[1755412291374,2.4323428,118240.0,118230.0,0.01306]
[1755412291760,2.43234278,118240.0,118230.0,0.01306]
[1755412292806,1.91295118,118240.0,118230.0,0.01306]
[1755412293058,2.48315278,118240.0,118230.0,0.01306]
[1755412298783,2.48315278,118240.0,118230.0,0.01]
[1755412299481,2.52047185,118240.0,118230.0,0.01]
[1755412300027,2.00549925,118240.0,118230.0,0.01]
[1755412300230,2.52489134,118240.0,118230.0,0.01]
[1755412300756,2.00549974,118240.0,118230.0,0.01]
[1755412300973,2.52489134,118240.0,118230.0,0.01]
[1755412303060,2.52047234,118240.0,118230.0,0.01]
[1755412303304,2.5145189,118240.0,118230.0,0.01]
[1755412303546,2.52047211,118240.0,118230.0,0.01]
[1755412304656,1.82047211,118240.0,118230.0,0.01]
[1755412305919,1.56077631,118240.0,118230.0,0.01]
[1755412306155,1.82047211,118240.0,118230.0,0.01]
[1755412306395,1.82047097,118240.0,118230.0,0.01]
[1755412307683,2.52047097,118240.0,118230.0,0.01]
[1755412309330,2.49864307,118240.0,118230.0,0.01]
[1755412309572,2.52047057,118240.0,118230.0,0.01]
[1755412309790,1.99512601,118240.0,118230.0,0.01]
[1755412309968,2.52047061,118240.0,118230.0,0.01]
[1755412310174,2.52047075,118240.0,118230.0,0.01]
[1755412311384,2.52047075,118240.0,118230.0,0.01539]
[1755412311625,2.48315168,118240.0,118230.0,0.01539]
[1755412312508,1.96376008,118240.0,118230.0,0.01539]
[1755412312710,2.48315168,118240.0,118230.0,0.01539]
[1755412317081,2.48315168,118240.0,118230.0,0.01]
[1755412318560,2.48314875,118240.0,118230.0,0.01323]
[1755412318795,2.48756775,118240.0,118230.0,0.01323]
[1755412322399,2.48161555,118240.0,118230.0,0.01323]
[1755412322601,2.48756782,118240.0,118230.0,0.01323]
[1755412324336,2.48756805,118240.0,118230.0,0.01323]
[1755412324548,1.96817645,118240.0,118230.0,0.01323]
[1755412324771,2.48756805,118240.0,118230.0,0.01323]
[1755412325134,1.96817645,118240.0,118230.0,0.01323]
[1755412325381,2.48756805,118240.0,118230.0,0.01323]
[1755412326462,2.48161554,118240.0,118230.0,0.01323]
[1755412326657,2.48756774,118240.0,118230.0,0.01323]
[1755412327072,2.48756771,118240.0,118230.0,0.01323]
[1755412327275,2.48756763,118240.0,118230.0,0.01323]
[1755412327678,2.48756763,118240.0,118230.0,0.01]
[1755412329738,1.96817603,118240.0,118230.0,0.01]
[1755412329961,2.48756763,118240.0,118230.0,0.01]
[1755412331402,2.48314863,118240.0,118230.0,0.01]
[1755412333984,2.52052485,118240.0,118230.0,0.01]
[1755412334166,1.82052485,118240.0,118230.0,0.01]
[1755412335231,1.30113325,118240.0,118230.0,0.01]
[1755412335439,1.80465239,118240.0,118230.0,0.01]
[1755412335683,1.80465232,118240.0,118230.0,0.01]
[1755412335885,1.82052459,118240.0,118230.0,0.01]
[1755412336103,1.82052459,118240.0,118230.0,0.013]
[1755412336744,1.30113299,118240.0,118230.0,0.013]
[1755412336971,1.82052459,118240.0,118230.0,0.013]
[1755412337168,2.52052459,118240.0,118230.0,0.013]
[1755412338710,2.5205243,118240.0,118230.0,0.013]
[1755412341008,2.5205243,118240.0,118230.0,0.0128]
[1755412341973,1.8205243,118240.0,118230.0,0.0128]
[1755412343935,1.8205243,118240.0,118230.0,0.0098]
[1755412344651,1.79870022,118240.0,118230.0,0.0098]
[1755412344863,2.52052395,118240.0,118230.0,0.0098]
[1755412345271,2.52052396,118240.0,118230.0,0.0098]
[1755412347570,2.00113236,118240.0,118230.0,0.0098]
[1755412347780,2.52052396,118240.0,118230.0,0.0098]
[1755412350335,2.5388085,118240.0,118230.0,0.0098]
[1755412351519,2.0194169,118240.0,118230.0,0.0098]
[1755412351717,2.5388085,118240.0,118230.0,0.0098]
[1755412351935,2.0194169,118240.0,118230.0,0.0098]
[1755412352163,2.2791127,118240.0,118230.0,0.0098]
[1755412352359,2.2791127,118240.0,118230.0,0.01478]
[1755412352563,2.5388085,118240.0,118230.0,0.01478]
[1755412353608,2.0194169,118240.0,118230.0,0.01478]
[1755412353821,2.53880817,118240.0,118230.0,0.01478]
[1755412354569,1.83880817,118240.0,118230.0,0.01478]
[1755412354978,1.83880816,118240.0,118230.0,0.01478]
[1755412355926,1.83880816,118240.0,118230.0,0.0098]
[1755412356969,1.83880825,118240.0,118230.0,0.0098]
[1755412357622,2.53880825,118240.0,118230.0,0.0098]
[1755412359970,2.53880752,118240.0,118230.0,0.0098]
[1755412360890,7.36919052,118240.0,118230.0,0.0098]
[1755412361557,6.6318143,118240.0,118230.0,0.0098]
[1755412361774,7.6350785,118240.0,118230.0,1e-08]
[1755412361988,7.62009822,118240.0,118230.0,1e-08]
[1755412362403,7.36040242,118240.0,118230.0,1e-08]
[1755412362607,7.62009822,118240.0,118230.0,1e-08]
[1755412362815,7.59727546,118240.0,118230.0,1e-08]
[1755412363026,7.6210849,118240.0,118230.0,1e-08]
[1755412363232,7.64394047,118240.0,118230.0,1e-08]
[1755412363449,6.94193342,118240.0,118230.0,1e-08]
[1755412363657,6.94393342,118240.0,118230.0,1e-08]
[1755412364441,6.94493342,118240.0,118230.0,1e-08]
[1755412364611,7.64493342,118240.0,118230.0,1e-08]
[1755412365040,7.64393342,118240.0,118230.0,1e-08]
[1755412365239,7.64593342,118240.0,118230.0,1e-08]
[1755412365934,7.64393342,118240.0,118230.0,1e-08]
[1755412366957,7.64593342,118240.0,118230.0,1e-08]
[1755412367170,7.62307785,118240.0,118230.0,1e-08]
[1755412368761,7.61712982,118240.0,118230.0,1e-08]
[1755412368970,7.64591151,118240.0,118230.0,1e-08]
[1755412369679,7.65391151,118240.0,118230.0,1e-08]
[1755412371370,7.65833085,118240.0,118230.0,1e-08]
[1755412371781,7.63655037,118240.0,118230.0,1e-08]
[1755412371983,7.65832346,118240.0,118230.0,1e-08]
[1755412372629,7.65832291,118240.0,118230.0,1e-08]
[1755412374145,0.40825902,118210.0,118200.0,0.012938]
[1755412374361,1.84090502,118210.0,118200.0,0.014988]
[1755412374554,1.84684139,118210.0,118200.0,0.014988]
[1755412374954,1.87227278,118210.0,118200.0,0.014988]
[1755412375410,1.87227278,118210.0,118200.0,0.01513474]
[1755412375643,1.17227278,118210.0,118200.0,0.01513474]
[1755412376134,1.17227278,118210.0,118200.0,0.01810474]
[1755412376377,1.19755805,118210.0,118200.0,0.01810474]
[1755412377094,1.28755805,118210.0,118200.0,0.02010474]
[1755412377324,1.28951805,118210.0,118200.0,0.01713474]
[1755412377814,1.29270805,118210.0,118200.0,0.01508474]
[1755412378138,1.29270174,118210.0,118200.0,0.01508474]
[1755412378343,1.28951174,118210.0,118200.0,0.01508474]
[1755412378558,1.28951174,118210.0,118200.0,0.01308474]
[1755412378751,1.98951174,118210.0,118200.0,0.01408474]
[1755412379391,1.98951174,118210.0,118200.0,0.01613474]
[1755412379626,1.98951174,118210.0,118200.0,0.01910474]
[1755412380238,1.98951174,118210.0,118200.0,0.01810474]
[1755412380443,1.70453067,118210.0,118200.0,0.01810474]
[1755412380658,1.96422647,118210.0,118200.0,0.01810474]
[1755412380862,1.96422556,118210.0,118200.0,0.01810474]
[1755412381068,1.96422287,118210.0,118200.0,0.01810474]
[1755412381494,1.96422349,118210.0,118200.0,0.01810474]
[1755412383160,1.95828964,118210.0,118200.0,0.01810474]
[1755412383377,1.96422368,118210.0,118200.0,0.01810474]
[1755412383582,2.00231434,118210.0,118200.0,0.01810474]
[1755412386240,2.00231783,118210.0,118200.0,0.01810474]
[1755412386531,1.74262203,118210.0,118200.0,0.01810474]
[1755412386745,2.00231783,118210.0,118200.0,0.01810474]
[1755412387896,2.00035783,118210.0,118200.0,0.01810474]
[1755412388123,1.67470856,118210.0,118200.0,0.01810474]
[1755412388345,1.62389856,118210.0,118200.0,0.01810474]
[1755412388574,1.87765951,118210.0,118200.0,0.01810474]
[1755412389017,1.93509436,118210.0,118200.0,0.01810474]
[1755412389243,1.21926808,118210.0,118200.0,0.01810474]
[1755412389461,1.23510533,118210.0,118200.0,0.01810474]
[1755412389679,1.23712533,118210.0,118200.0,0.01810474]
[1755412389887,1.23712466,118210.0,118200.0,0.01513474]
[1755412390512,1.49682046,118210.0,118200.0,0.01513474]
[1755412390719,1.52210573,118210.0,118200.0,0.01513474]
[1755412391600,1.00271413,118210.0,118200.0,0.01513474]
[1755412391806,1.52210573,118210.0,118200.0,0.01513474]
[1755412392419,1.59039409,118210.0,118200.0,0.01308474]
[1755412392616,1.59350409,118210.0,118200.0,0.01308474]
[1755412393018,1.33380829,118210.0,118200.0,0.01308474]
[1755412393233,1.07411249,118210.0,118200.0,0.01308474]
[1755412393448,1.59350409,118210.0,118200.0,0.01308474]
[1755412394710,6.57388709,118210.0,118200.0,0.01308474]
[1755412395373,6.57388754,118210.0,118200.0,0.01308474]
[1755412396559,6.57488754,118210.0,118200.0,0.01308474]
[1755412397058,6.57388754,118210.0,118200.0,0.01308474]
[1755412397465,6.57488754,118210.0,118200.0,0.01308474]
[1755412397724,6.5931419,118210.0,118200.0,0.01308474]
[1755412398047,6.5941419,118210.0,118200.0,0.01308474]
[1755412398375,6.59414785,118210.0,118200.0,0.01308474]
[1755412398780,6.59414701,118210.0,118200.0,0.01308474]
[1755412400441,7.29414701,118210.0,118200.0,0.01308474]
[1755412403818,6.77475541,118210.0,118200.0,0.01308474]
[1755412404019,7.29414701,118210.0,118200.0,0.01308474]
[1755412406701,6.59414701,118210.0,118200.0,0.01308474]
[1755412407352,6.57830035,118210.0,118200.0,0.01308474]
[1755412407555,6.59414682,118210.0,118200.0,0.01308474]
[1755412409913,7.29414682,118210.0,118200.0,0.01308474]
[1755412411623,7.25605616,118210.0,118200.0,0.01308474]
[1755412413367,0.16921905,118190.0,118180.0,0.00308]
[1755412413614,0.61260797,118190.0,118180.0,0.00515]
[1755412413822,0.66410515,118190.0,118180.0,0.00515]
[1755412414298,0.42984635,118190.0,118180.0,0.00515]
[1755412414505,0.79964147,118190.0,118180.0,0.00515]
[1755412414711,0.88588692,118190.0,118180.0,0.00515]
[1755412414919,1.15402025,118190.0,118180.0,0.00515]
[1755412415332,1.15402025,118190.0,118180.0,0.00715]
[1755412416512,1.13223248,118190.0,118180.0,0.00715]
[1755412416722,1.15401658,118190.0,118180.0,0.00715]
[1755412417250,1.20484658,118190.0,118180.0,0.00715]
[1755412419727,1.20484598,118190.0,118180.0,0.00715]
[1755412420966,1.17956071,118190.0,118180.0,0.00715]
[1755412422769,1.17956096,118190.0,118180.0,0.00715]
[1755412425792,1.15777721,118190.0,118180.0,0.00715]
[1755412425988,1.05064097,118190.0,118180.0,0.00715]
[1755412426207,1.11262105,118190.0,118180.0,0.00715]
[1755412426450,1.12846414,118190.0,118180.0,0.00715]
[1755412427239,1.13056414,118190.0,118180.0,0.00715]
[1755412427460,1.18520132,118190.0,118180.0,0.002]
[1755412428095,1.18206132,118190.0,118180.0,0.002]
[1755412429695,1.20734659,118190.0,118180.0,0.002]
[1755412429862,1.20734659,118190.0,118170.0,0.00308]
[1755412430121,0.55820917,118180.0,118170.0,0.00308]
[1755412430297,0.6199468,118180.0,118170.0,0.00515]
[1755412430675,0.6453858,118180.0,118170.0,0.00515]
[1755412431432,0.6453858,118180.0,118170.0,0.00715]
[1755412435050,0.64538773,118180.0,118170.0,0.00715]
[1755412435509,0.64538803,118180.0,118170.0,0.00715]
[1755412437884,0.38569223,118180.0,118170.0,0.00715]
[1755412438300,0.64538803,118180.0,118170.0,0.00715]
[1755412439161,0.73538803,118180.0,118170.0,0.00715]
[1755412442603,0.74133147,118180.0,118170.0,0.00715]
[1755412443043,0.71954281,118180.0,118170.0,0.00715]
[1755412443471,0.74133763,118180.0,118170.0,0.00715]
[1755412444346,0.48164176,118180.0,118170.0,0.00715]
[1755412444555,0.74133756,118180.0,118170.0,0.00715]
[1755412444755,0.48164176,118180.0,118170.0,0.00715]
[1755412445049,0.74133756,118180.0,118170.0,0.00715]
[1755412445263,0.48164176,118180.0,118170.0,0.00715]
[1755412445675,0.74133756,118180.0,118170.0,0.00715]
[1755412446470,0.74134129,118180.0,118170.0,0.00715]
[1755412447656,0.74332129,118180.0,118170.0,0.00715]
[1755412448892,0.74332197,118180.0,118170.0,0.00715]
[1755412450479,0.74332197,118180.0,118170.0,0.00407]
[1755412452279,0.72152281,118180.0,118170.0,0.00407]
[1755412452481,0.74332108,118180.0,118170.0,0.002]
[1755412454023,0.74332108,118180.0,118170.0,0.00406]
[1755412455205,0.48362528,118180.0,118170.0,0.00406]
[1755412455533,0.74332108,118180.0,118170.0,0.00406]
[1755412455894,0.61404108,118180.0,118170.0,0.00406]
[1755412456048,0.74352108,118180.0,118170.0,0.00406]
[1755412457247,1.00629688,118180.0,118170.0,0.002]
[1755412458029,1.34629688,118180.0,118170.0,0.002]
[1755412458383,1.33044359,118180.0,118170.0,0.002]
[1755412458601,1.34629569,118180.0,118170.0,0.002]
[1755412461212,0.82690409,118180.0,118170.0,0.002]
[1755412461385,1.34629569,118180.0,118170.0,0.002]
[1755412461690,1.34629397,118180.0,118170.0,0.002]
[1755412462263,1.32449861,118180.0,118170.0,0.002]
[1755412462458,1.3462935,118180.0,118170.0,0.002]
[1755412462583,0.91171589,118180.0,118170.0,0.002]
[1755412462811,1.43110749,118180.0,118170.0,0.002]
[1755412463046,1.45639276,118180.0,118170.0,0.002]
[1755412464240,6.38910294,118180.0,118170.0,0.002]
[1755412464669,6.3891011,118180.0,118170.0,0.002]
[1755412464878,5.8697095,118180.0,118170.0,0.002]
[1755412465102,6.3891011,118180.0,118170.0,0.002]
[1755412465299,0.50924769,118170.0,118160.0,0.00068955]
[1755412465505,5.77810578,118170.0,118160.0,0.00068955]
[1755412465737,0.94772278,118170.0,118160.0,0.00068955]
[1755412466014,0.97316378,118170.0,118160.0,0.00068955]
[1755412467186,0.70752392,118170.0,118160.0,0.00068955]
[1755412467393,0.96721972,118170.0,118160.0,0.00068955]
[1755412467857,0.96721972,118170.0,118160.0,0.00268955]
[1755412468224,0.83781972,118170.0,118160.0,0.00268955]
[1755412468541,0.96713972,118170.0,118160.0,0.00268955]
[1755412469343,0.70744392,118170.0,118160.0,0.00268955]
[1755412469541,0.96713972,118170.0,118160.0,0.00268955]
[1755412470089,0.97307961,118170.0,118160.0,0.00268955]
[1755412470742,0.9671296,118170.0,118160.0,0.00268955]
[1755412470944,0.97306915,118170.0,118160.0,0.00268955]
[1755412471222,0.97306892,118170.0,118160.0,0.00268955]
[1755412472174,0.96712943,118170.0,118160.0,0.00268955]
[1755412473696,0.97306773,118170.0,118160.0,0.00268955]
[1755412474080,0.71645193,118170.0,118160.0,0.00268955]
[1755412474238,0.97614773,118170.0,118160.0,0.00268955]
[1755412476448,0.97020943,118170.0,118160.0,0.00268955]
[1755412478613,1.06096089,118170.0,118160.0,0.00268955]
[1755412479669,1.09595225,118170.0,118160.0,0.00268955]
[1755412479870,1.11178345,118170.0,118160.0,0.00268955]
[1755412480553,1.81178345,118170.0,118160.0,0.00268955]
[1755412481462,1.86328063,118170.0,118160.0,0.00268955]
[1755412484047,1.86328063,118170.0,118160.0,0.00068955]
[1755412486248,1.86327642,118170.0,118160.0,0.00068955]
[1755412487400,2.12297222,118170.0,118160.0,0.00068955]
[1755412487937,1.60358062,118170.0,118160.0,0.00068955]
[1755412488152,2.12297222,118170.0,118160.0,0.00068955]
[1755412488800,6.97080424,118170.0,118160.0,0.00068955]
[1755412489028,6.98904082,118170.0,118160.0,0.00068955]
[1755412490365,6.93854364,118170.0,118160.0,0.00068955]
[1755412490861,6.93954364,118170.0,118160.0,0.00068955]
[1755412491092,6.93854364,118170.0,118160.0,0.00068955]
[1755412491328,6.93954364,118170.0,118160.0,0.00068955]
[1755412492999,6.23954364,118170.0,118160.0,0.00068955]
[1755412494467,6.68754364,118170.0,118160.0,0.00068955]
[1755412495295,6.16815204,118170.0,118160.0,0.00068955]
[1755412495502,6.68754364,118170.0,118160.0,0.00068955]
[1755412497263,6.16815204,118170.0,118160.0,0.00068955]
[1755412497405,6.68754364,118170.0,118160.0,0.00068955]
[1755412498013,6.68753048,118170.0,118160.0,0.00068955]
[1755412498261,6.68752564,118170.0,118160.0,0.00068955]
[1755412498461,6.68752529,118170.0,118160.0,0.00068955]
[1755412499556,7.38752529,118170.0,118160.0,0.00068955]
[1755412500509,1.90662843,118160.0,118150.0,0.0002]
[1755412500716,6.23519148,118160.0,118150.0,0.0002488]
[1755412500923,6.74865232,118160.0,118150.0,0.0002488]
[1755412501132,6.75458279,118160.0,118150.0,0.0002488]
[1755412501857,6.78014979,118160.0,118150.0,0.0023088]
[1755412502061,6.78014979,118160.0,118150.0,0.0053088]
[1755412502262,6.26075819,118160.0,118150.0,0.0053088]
[1755412502414,6.78014979,118160.0,118150.0,0.0053088]
[1755412502624,6.81931979,118160.0,118150.0,0.0053088]
[1755412503669,6.81931979,118160.0,118150.0,0.0023088]
[1755412503830,6.81931929,118160.0,118150.0,0.0023088]
[1755412506230,7.08201509,118160.0,118150.0,0.0002488]
[1755412506441,7.08201349,118160.0,118150.0,0.0002488]
[1755412506825,6.82231769,118160.0,118150.0,0.0002488]
[1755412507024,6.30292609,118160.0,118150.0,0.0002488]
[1755412507230,6.82231769,118160.0,118150.0,0.0002488]
[1755412508101,6.81931769,118160.0,118150.0,0.0002488]
[1755412508317,6.83753724,118160.0,118150.0,0.0002488]
[1755412508755,6.83753724,118160.0,118150.0,0.0023988]
[1755412510758,6.57784144,118160.0,118150.0,0.0023988]
[1755412510969,6.83753724,118160.0,118150.0,0.0023988]
[1755412512848,6.88836724,118160.0,118150.0,0.0023988]
[1755412514423,0.50927634,118150.0,118140.0,0.06022653]
[1755412514615,6.17446305,118150.0,118140.0,0.05721545]
[1755412514810,6.17446305,118150.0,118140.0,0.05936545]
[1755412515220,6.19991105,118150.0,118140.0,0.05936545]
[1755412515432,6.19992171,118150.0,118140.0,0.06242545]
[1755412515647,6.20092171,118150.0,118140.0,0.06442545]
[1755412515847,6.15437083,118150.0,118140.0,0.06242545]
[1755412516153,6.17119228,118150.0,118140.0,0.05721545]
[1755412518294,6.17119228,118150.0,118140.0,0.05936545]
[1755412518934,6.87119228,118150.0,118140.0,0.05936545]
[1755412519144,6.35180068,118150.0,118140.0,0.05936545]
[1755412519344,6.17119228,118150.0,118140.0,0.05936545]
[1755412520171,6.17119228,118150.0,118140.0,0.05721545]
[1755412521165,6.1886413,118150.0,118140.0,0.05721545]
[1755412521377,6.20687759,118150.0,118140.0,0.05721545]
[1755412523204,6.2577109,118150.0,118140.0,0.05721545]
[1755412524619,6.25178341,118150.0,118140.0,0.05721545]
[1755412524832,6.25771983,118150.0,118140.0,0.05721545]
[1755412527998,6.26071983,118150.0,118140.0,0.05721545]
[1755412528816,6.2980597,118150.0,118140.0,0.05721545]
[1755412531233,6.2950597,118150.0,118140.0,0.05721545]
[1755412533796,6.2950648,118150.0,118140.0,0.05721545]
[1755412536466,6.29507105,118150.0,118140.0,0.05721545]
[1755412536807,6.29507165,118150.0,118140.0,0.05721545]
[1755412538086,5.77568005,118150.0,118140.0,0.05721545]
[1755412538309,5.64556005,118150.0,118140.0,0.05928545]
[1755412538532,0.34825693,118150.0,118140.0,0.32196125]
[1755412538743,0.66280893,118150.0,118140.0,0.32196125]
[1755412538950,0.65687052,118150.0,118140.0,0.06226545]
[1755412539160,0.52711052,118150.0,118140.0,0.06438158]
[1755412539363,0.65695052,118150.0,118140.0,0.06438158]
[1755412540417,0.72845146,118150.0,118140.0,0.06438158]
[1755412540647,0.65695052,118150.0,118140.0,0.06438158]
[1755412541079,0.52711052,118150.0,118140.0,0.32407738]
[1755412541305,0.65695052,118150.0,118140.0,0.32196125]
[1755412541851,0.65695052,118150.0,118140.0,0.06226545]
[1755412542069,0.65495052,118150.0,118140.0,0.06438158]
[1755412542273,0.63911634,118150.0,118140.0,0.06438158]
[1755412542720,0.72393758,118150.0,118140.0,0.06438158]
[1755412543226,0.72393758,118150.0,118140.0,0.32407738]
[1755412543494,0.72393758,118150.0,118140.0,0.06226545]
[1755412543742,0.72393758,118150.0,118140.0,0.06438158]
[1755412545182,0.63911634,118150.0,118140.0,0.06438158]
[1755412546194,0.28470701,118160.0,118140.0,0.75517998]
[1755412546387,0.12972,118150.0,118140.0,0.48827192]
[1755412546616,0.46972,118150.0,118140.0,0.48827192]
[1755412547030,0.46972,118150.0,118140.0,0.23155612]
[1755412547206,0.63899634,118150.0,118140.0,0.23155612]
[1755412547426,0.63899634,118150.0,118140.0,0.49125192]
[1755412547682,0.63899634,118150.0,118140.0,0.23155612]
[1755412547856,0.63899634,118150.0,118140.0,0.49125192]
[1755412549068,0.46972,118150.0,118140.0,0.49125192]
[1755412550834,0.46972,118150.0,118140.0,0.23155612]
[1755412551049,0.46972,118150.0,118140.0,0.49125192]
[1755412551307,0.46976,118150.0,118140.0,0.49125192]
[1755412551565,0.46984,118150.0,118140.0,0.23155612]
[1755412551776,0.09,118160.0,118150.0,0.16927634]
[1755412551915,0.55984,118160.0,118150.0,0.43104214]
[1755412552116,0.55984,118160.0,118150.0,0.43402214]
[1755412552333,0.55984,118160.0,118150.0,0.51884338]
[1755412552739,0.55984,118160.0,118150.0,0.17432634]
[1755412553352,0.56184,118160.0,118150.0,0.17432634]
[1755412554444,0.73110201,118160.0,118150.0,0.17432634]
[1755412555228,0.73110201,118160.0,118150.0,0.43402214]
[1755412555816,0.73110201,118160.0,118150.0,0.17432634]
[1755412561315,0.99079781,118160.0,118150.0,0.17432634]
[1755412562092,0.73110201,118160.0,118150.0,0.17432634]
[1755412562310,0.99079781,118160.0,118150.0,0.17432634]
[1755412562851,0.73110201,118160.0,118150.0,0.17432634]
[1755412563442,0.99079781,118160.0,118150.0,0.00505]
[1755412563857,0.99289781,118160.0,118150.0,0.00505]
[1755412565612,0.73320201,118160.0,118150.0,0.00505]
[1755412565819,0.99289781,118160.0,118150.0,0.00505]
[1755412571137,0.99289781,118160.0,118150.0,0.00207]
[1755412572235,0.81802325,118160.0,118150.0,0.00207]
[1755412572477,1.09354906,118160.0,118150.0,0.00207]
[1755412572729,0.74903202,118160.0,118150.0,0.00207]
[1755412578497,0.73320201,118160.0,118150.0,0.00207]
[1755412578661,0.74904861,118160.0,118150.0,0.00207]
[1755412579024,0.99289781,118160.0,118140.0,0.48914192]
[1755412579232,1.09356565,118160.0,118140.0,0.57395597]
[1755412579978,1.09256565,118160.0,118140.0,0.57395597]
[1755412580184,1.09156565,118160.0,118140.0,0.57395597]
[1755412580386,1.09256565,118160.0,118140.0,0.57395597]
[1755412581110,1.09356565,118160.0,118140.0,0.57395597]
[1755412584713,1.09662565,118160.0,118140.0,0.57395597]
[1755412585006,0.83692985,118160.0,118140.0,0.57395597]
[1755412585368,1.09662565,118160.0,118140.0,0.57395597]
[1755412585573,0.83692985,118160.0,118140.0,0.31426017]
[1755412585795,1.09662565,118160.0,118140.0,0.57395597]
[1755412587615,1.08077905,118160.0,118140.0,0.57395597]
[1755412587830,1.09663652,118160.0,118140.0,0.57395597]
[1755412588460,0.16927634,118150.0,118140.0,0.31426017]
[1755412588666,0.16927634,118150.0,118140.0,0.57610597]
[1755412590666,0.16927634,118150.0,118140.0,0.31641017]
[1755412590882,0.16927634,118150.0,118140.0,0.57610597]
[1755412591813,0.19698264,118150.0,118140.0,0.31641017]
[1755412592016,0.20004264,118150.0,118140.0,0.18661545]
[1755412592255,0.45973844,118150.0,118140.0,0.05721545]
[1755412595047,0.79973844,118150.0,118140.0,0.05721545]
[1755412595855,0.54004264,118150.0,118140.0,0.05721545]
[1755412596080,0.79973844,118150.0,118140.0,0.05721545]
[1755412600572,0.54004264,118150.0,118140.0,0.05721545]
[1755412600822,0.92913844,118150.0,118140.0,0.05721545]
[1755412607396,0.66944264,118150.0,118140.0,0.05721545]
[1755412607790,0.92913844,118150.0,118140.0,0.05721545]
[1755412612868,0.66944264,118150.0,118140.0,0.05721545]
[1755412613104,1.21956325,118150.0,118140.0,0.05721545]
[1755412613316,1.00114521,118150.0,118140.0,0.05721545]
[1755412613733,0.9704162,118150.0,118140.0,0.05721545]
[1755412614996,0.7107204,118150.0,118140.0,0.05721545]
[1755412615196,0.97041541,118150.0,118140.0,0.05721545]
[1755412615595,0.97041418,118150.0,118140.0,0.05721545]
[1755412616210,0.71071838,118150.0,118140.0,0.05721545]
[1755412616414,0.97041418,118150.0,118140.0,0.05721545]
[1755412618172,0.97041308,118150.0,118140.0,0.05721545]
[1755412620711,0.71071728,118150.0,118140.0,0.05721545]
[1755412621115,0.97041308,118150.0,118140.0,0.05721545]
[1755412621549,0.96827308,118150.0,118140.0,0.05721545]
[1755412622387,0.70857728,118150.0,118140.0,0.05721545]
[1755412622609,0.96827308,118150.0,118140.0,0.05721545]
[1755412623118,0.69274764,118150.0,118140.0,0.05721545]
[1755412623364,0.70656093,118150.0,118140.0,0.06236545]
[1755412623581,0.66512134,118150.0,118140.0,0.32206125]
[1755412624020,0.66512134,118150.0,118140.0,0.06236545]
[1755412624230,0.66512134,118150.0,118140.0,0.06448158]
[1755412624855,0.92481714,118150.0,118140.0,0.06448158]
[1755412626982,0.92684714,118150.0,118140.0,0.06448158]
[1755412627562,0.92684714,118150.0,118140.0,0.06136158]
[1755412628172,1.01166838,118150.0,118140.0,0.06136158]
[1755412629077,1.01166838,118150.0,118140.0,0.05933158]
[1755412629421,1.01166838,118150.0,118140.0,0.05721545]
[1755412631256,1.01322838,118150.0,118140.0,0.05721545]
[1755412632626,1.0290688,118150.0,118140.0,0.05721545]
[1755412632865,1.01322838,118150.0,118140.0,0.05721545]
[1755412633088,1.02906909,118150.0,118140.0,0.05721545]
[1755412634951,1.02750909,118150.0,118140.0,0.05721545]
[1755412635443,0.77088329,118150.0,118140.0,0.05721545]
[1755412635672,1.03057909,118150.0,118140.0,0.05721545]
[1755412636394,1.02750909,118150.0,118140.0,0.05721545]
[1755412637928,1.03057909,118150.0,118140.0,0.05721545]
[1755412641372,1.01473838,118150.0,118140.0,0.05721545]
[1755412641595,1.03058912,118150.0,118140.0,0.05721545]
[1755412642037,1.03058932,118150.0,118140.0,0.05721545]
[1755412643525,0.77089352,118150.0,118140.0,0.05721545]
[1755412643742,1.03058932,118150.0,118140.0,0.05721545]
[1755412650064,1.03053136,118150.0,118140.0,0.05721545]
[1755412650477,1.01468042,118150.0,118140.0,0.05721545]
[1755412650620,1.0305358,118150.0,118140.0,0.05721545]
[1755412651614,0.77084,118150.0,118140.0,0.05721545]
[1755412651835,0.94571456,118150.0,118140.0,0.05721545]
[1755412652058,0.94264456,118150.0,118140.0,0.05721545]
[1755412658161,0.68294876,118150.0,118140.0,0.05721545]
[1755412658352,0.94264456,118150.0,118140.0,0.05721545]
[1755412658554,1.0274658,118150.0,118140.0,0.05721545]
[1755412659629,1.01161042,118150.0,118140.0,0.05721545]
[1755412659828,1.02746756,118150.0,118140.0,0.05721545]
[1755412660964,1.03341405,118150.0,118140.0,0.05721545]
[1755412662774,1.02746756,118150.0,118140.0,0.05721545]
[1755412662966,1.0334142,118150.0,118140.0,0.05721545]
[1755412668963,1.03341555,118150.0,118140.0,0.05721545]
[1755412674976,1.03341624,118150.0,118140.0,0.05721545]
[1755412675133,1.03648807,118150.0,118140.0,0.05721545]
[1755412677970,1.02062832,118150.0,118140.0,0.05721545]
[1755412678172,1.0364894,118150.0,118140.0,0.05721545]
[1755412678720,0.7767936,118150.0,118140.0,0.05721545]
[1755412678949,1.0364894,118150.0,118140.0,0.05721545]
[1755412679426,1.0334194,118150.0,118140.0,0.05721545]
[1755412686448,1.01755843,118150.0,118140.0,0.05721545]
[1755412686698,1.03341981,118150.0,118140.0,0.05721545]
[1755412686887,1.01755843,118150.0,118140.0,0.05721545]
[1755412687124,1.03341982,118150.0,118140.0,0.05721545]
[1755412688740,0.77372402,118150.0,118140.0,0.05721545]
[1755412688950,1.03341982,118150.0,118140.0,0.05721545]
[1755412689516,1.03661982,118150.0,118140.0,0.05721545]
[1755412690445,0.77692402,118150.0,118140.0,0.05721545]
[1755412690873,1.03661982,118150.0,118140.0,0.05721545]
[1755412692673,1.03662044,118150.0,118140.0,0.05721545]
[1755412692810,0.77692464,118150.0,118140.0,0.05721545]
[1755412693038,1.03662044,118150.0,118140.0,0.05721545]
[1755412695002,0.77692464,118150.0,118140.0,0.05721545]